[Event "Late-Titled-Tuesday-Blitz-February-20-2024"]
[Site "Chess.com"]
[Date "2024.02.20"]
[Round "2"]
[White "ImportedItalianMaple"]
[Black "mbojan"]
[Result "0-1"]
[WhiteElo "2536"]
[BlackElo "2872"]
[TimeControl "180+1"]
[EndTime "14:17:29 PST"]
[Termination "mbojan won on time"]

1. Nf3 {[%clk 0:03:00.9]} 1... g6 {[%clk 0:02:59.2]} 2. e4 {[%clk 0:02:59.6]}
2... Nf6 {[%clk 0:02:59.5]} 3. e5 {[%clk 0:02:58.3]} 3... Nh5 {[%clk 0:02:59.6]}
4. d4 {[%clk 0:02:57.6]} 4... d6 {[%clk 0:03:00]} 5. Bb5+ {[%clk 0:02:44.2]}
5... c6 {[%clk 0:02:09.7]} 6. Bc4 {[%clk 0:02:44]} 6... d5 {[%clk 0:02:09.1]} 7.
Bd3 {[%clk 0:02:37]} 7... Bg4 {[%clk 0:02:09.2]} 8. Nbd2 {[%clk 0:02:33.5]} 8...
Nf4 {[%clk 0:02:07.9]} 9. Bf1 {[%clk 0:02:32]} 9... Ne6 {[%clk 0:02:00.5]} 10.
h3 {[%clk 0:02:30.8]} 10... Bxf3 {[%clk 0:02:00.7]} 11. Nxf3 {[%clk 0:02:31.1]}
11... h5 {[%clk 0:02:00.8]} 12. c4 {[%clk 0:02:26.1]} 12... Bh6 {[%clk
0:01:55.6]} 13. Bxh6 {[%clk 0:02:26.1]} 13... Rxh6 {[%clk 0:01:56.5]} 14. Qd2
{[%clk 0:02:23.5]} 14... Rh8 {[%clk 0:01:55.3]} 15. Rc1 {[%clk 0:02:19.9]} 15...
Kf8 {[%clk 0:01:51.7]} 16. Bd3 {[%clk 0:02:08.1]} 16... Kg7 {[%clk 0:01:50.1]}
17. O-O {[%clk 0:02:08.4]} 17... Na6 {[%clk 0:01:37.9]} 18. cxd5 {[%clk
0:02:05.6]} 18... Qxd5 {[%clk 0:01:38.2]} 19. Bc4 {[%clk 0:02:04.4]} 19... Qd7
{[%clk 0:01:38.1]} 20. Bxa6 {[%clk 0:01:55.3]} 20... bxa6 {[%clk 0:01:39]} 21.
b4 {[%clk 0:01:46]} 21... Rhd8 {[%clk 0:01:38]} 22. Rc4 {[%clk 0:01:43.2]} 22...
Rab8 {[%clk 0:01:19.4]} 23. Qc3 {[%clk 0:01:41.1]} 23... Nc7 {[%clk 0:01:12.2]}
24. a3 {[%clk 0:01:31.4]} 24... Nb5 {[%clk 0:01:07.7]} 25. Qe3 {[%clk
0:01:31.3]} 25... Nc7 {[%clk 0:00:48.1]} 26. Rfc1 {[%clk 0:01:30.3]} 26... Nd5
{[%clk 0:00:48.7]} 27. Qe2 {[%clk 0:01:26.1]} 27... Rb6 {[%clk 0:00:49]} 28. Rc5
{[%clk 0:01:24.5]} 28... e6 {[%clk 0:00:47.7]} 29. R1c4 {[%clk 0:01:09.7]} 29...
Rc8 {[%clk 0:00:43.8]} 30. Ng5 {[%clk 0:01:09.7]} 30... Rb5 {[%clk 0:00:37.3]}
31. Ne4 {[%clk 0:01:09.3]} 31... Rxc5 {[%clk 0:00:36.3]} 32. Rxc5 {[%clk
0:01:06.6]} 32... Nf4 {[%clk 0:00:30.4]} 33. Qc4 {[%clk 0:01:06.8]} 33... Qxd4
{[%clk 0:00:30.7]} 34. Nd6 {[%clk 0:00:48]} 34... Qd1+ {[%clk 0:00:26.1]} 35.
Kh2 {[%clk 0:00:48.3]} 35... Ne2 {[%clk 0:00:26.9]} 36. Qxe2 {[%clk 0:00:31.3]}
36... Qxe2 {[%clk 0:00:27.8]} 37. Nxc8 {[%clk 0:00:32.1]} 37... Qxf2 {[%clk
0:00:28.1]} 38. Nxa7 {[%clk 0:00:28]} 38... Qf4+ {[%clk 0:00:23.4]} 39. Kg1
{[%clk 0:00:27.5]} 39... Qe3+ {[%clk 0:00:23.6]} 40. Kh2 {[%clk 0:00:27.9]}
40... Qxa3 {[%clk 0:00:24]} 41. Nxc6 {[%clk 0:00:28.1]} 41... h4 {[%clk
0:00:24.5]} 42. Kg1 {[%clk 0:00:24.7]} 42... Qe3+ {[%clk 0:00:24.4]} 43. Kh2
{[%clk 0:00:25]} 43... Kh6 {[%clk 0:00:25]} 44. Rc4 {[%clk 0:00:20.6]} 44... g5
{[%clk 0:00:21.9]} 45. Rc5 {[%clk 0:00:20.3]} 45... Qe4 {[%clk 0:00:20.6]} 46.
Kg1 {[%clk 0:00:18.6]} 46... a5 {[%clk 0:00:19.5]} 0-1

[Event "Late-Titled-Tuesday-Blitz-February-20-2024"]
[Site "Chess.com"]
[Date "2024.02.20"]
[Round "2"]
[White "Taran2004"]
[Black "Flawless_Fighter"]
[Result "1-0"]
[WhiteElo "2417"]
[BlackElo "2739"]
[TimeControl "180+1"]
[EndTime "14:17:30 PST"]
[Termination "Taran2004 won by resignation"]

1. e4 {[%clk 0:02:57]} 1... c5 {[%clk 0:03:00.1]} 2. Nf3 {[%clk 0:02:56.8]} 2...
d6 {[%clk 0:03:00.2]} 3. d4 {[%clk 0:02:57.2]} 3... cxd4 {[%clk 0:03:01.1]} 4.
Qxd4 {[%clk 0:02:57.6]} 4... Nf6 {[%clk 0:03:01.9]} 5. e5 {[%clk 0:02:57.9]}
5... Nc6 {[%clk 0:02:52.2]} 6. Bb5 {[%clk 0:02:56.2]} 6... dxe5 {[%clk
0:02:41.5]} 7. Bxc6+ {[%clk 0:02:55.2]} 7... bxc6 {[%clk 0:02:41.8]} 8. Qxd8+
{[%clk 0:02:55.9]} 8... Kxd8 {[%clk 0:02:42.2]} 9. Nxe5 {[%clk 0:02:56.6]} 9...
Be6 {[%clk 0:02:40.1]} 10. Nxc6+ {[%clk 0:02:51.6]} 10... Kc7 {[%clk 0:02:40.2]}
11. Nd4 {[%clk 0:02:52.3]} 11... Bd5 {[%clk 0:02:39.5]} 12. O-O {[%clk
0:02:52.4]} 12... e5 {[%clk 0:02:37.7]} 13. Nb5+ {[%clk 0:02:52.1]} 13... Kb6
{[%clk 0:02:32.3]} 14. N5c3 {[%clk 0:02:47.6]} 14... Bc6 {[%clk 0:02:27.7]} 15.
Be3+ {[%clk 0:02:47.1]} 15... Kc7 {[%clk 0:02:16.4]} 16. Nd2 {[%clk 0:02:44.8]}
16... Bb4 {[%clk 0:02:13.5]} 17. Ncb1 {[%clk 0:02:17.4]} 17... Nd5 {[%clk
0:02:05.3]} 18. c3 {[%clk 0:02:14]} 18... Be7 {[%clk 0:02:02.4]} 19. Re1 {[%clk
0:02:07.6]} 19... f5 {[%clk 0:01:54.4]} 20. Nc4 {[%clk 0:02:04.9]} 20... Nxe3
{[%clk 0:01:43.6]} 21. Nxe3 {[%clk 0:02:04.5]} 21... g6 {[%clk 0:01:41]} 22. Nd2
{[%clk 0:01:59.6]} 22... Rhd8 {[%clk 0:01:37.9]} 23. Ndc4 {[%clk 0:01:53.1]}
23... e4 {[%clk 0:01:38.3]} 24. Rad1 {[%clk 0:01:53.4]} 24... Bf6 {[%clk
0:01:32.3]} 25. Na5 {[%clk 0:01:51.5]} 25... Rab8 {[%clk 0:01:19.6]} 26. Rxd8
{[%clk 0:01:38.6]} 26... Bxd8 {[%clk 0:01:13.2]} 27. Nxc6 {[%clk 0:01:26.3]}
27... Kxc6 {[%clk 0:01:13.5]} 28. b3 {[%clk 0:01:26.3]} 28... Ba5 {[%clk
0:01:12.6]} 29. Rd1 {[%clk 0:01:21.1]} 29... f4 {[%clk 0:01:04]} 30. Nd5 {[%clk
0:01:17.8]} 30... Rd8 {[%clk 0:00:56.2]} 31. Ne7+ {[%clk 0:01:05.4]} 31... Kb5
{[%clk 0:00:55.5]} 32. Rxd8 {[%clk 0:01:02.9]} 32... Bxd8 {[%clk 0:00:55.4]} 33.
Nd5 {[%clk 0:01:03.5]} 33... g5 {[%clk 0:00:51.5]} 34. Kf1 {[%clk 0:01:00.6]}
34... Kc5 {[%clk 0:00:51.5]} 35. c4 {[%clk 0:01:01.1]} 35... Kd4 {[%clk
0:00:48.6]} 36. Ke2 {[%clk 0:01:01.4]} 36... h5 {[%clk 0:00:44.2]} 37. h4 {[%clk
0:00:58.6]} 37... f3+ {[%clk 0:00:38.7]} 38. gxf3 {[%clk 0:00:57.7]} 38... exf3+
{[%clk 0:00:36]} 39. Kxf3 {[%clk 0:00:58.1]} 39... gxh4 {[%clk 0:00:36.9]} 40.
Nf4 {[%clk 0:00:55]} 40... Kc3 {[%clk 0:00:34.8]} 41. c5 {[%clk 0:00:52.5]}
41... Kb2 {[%clk 0:00:21.5]} 42. Ne6 {[%clk 0:00:49.8]} 42... Ba5 {[%clk
0:00:21]} 43. c6 {[%clk 0:00:49.1]} 43... Kxa2 {[%clk 0:00:21.2]} 44. b4 {[%clk
0:00:47.1]} 44... Bb6 {[%clk 0:00:20]} 45. c7 {[%clk 0:00:46.8]} 45... Bxc7
{[%clk 0:00:20.4]} 46. Nxc7 {[%clk 0:00:47.2]} 46... Kb3 {[%clk 0:00:21.1]} 47.
b5 {[%clk 0:00:32.8]} 47... Kc4 {[%clk 0:00:20.9]} 48. Ke4 {[%clk 0:00:23]}
48... Kc5 {[%clk 0:00:20.8]} 49. f4 {[%clk 0:00:21.7]} 49... h3 {[%clk
0:00:16.7]} 50. Kf3 {[%clk 0:00:21.4]} 50... Kb6 {[%clk 0:00:17.2]} 51. Nd5+
{[%clk 0:00:19.1]} 51... Kxb5 {[%clk 0:00:17.4]} 52. f5 {[%clk 0:00:19.8]} 52...
Kc6 {[%clk 0:00:17.5]} 53. f6 {[%clk 0:00:19.3]} 1-0

[Event "Late-Titled-Tuesday-Blitz-February-20-2024"]
[Site "Chess.com"]
[Date "2024.02.20"]
[Round "2"]
[White "OverallStranger"]
[Black "HajiyevKanan"]
[Result "1-0"]
[WhiteElo "2351"]
[BlackElo "2504"]
[TimeControl "180+1"]
[EndTime "14:17:34 PST"]
[Termination "OverallStranger won by checkmate"]

1. d4 {[%clk 0:03:00.9]} 1... d5 {[%clk 0:03:00.2]} 2. c4 {[%clk 0:02:58.2]}
2... c6 {[%clk 0:03:00.8]} 3. cxd5 {[%clk 0:02:57.8]} 3... cxd5 {[%clk
0:03:01.7]} 4. Nc3 {[%clk 0:02:58.1]} 4... Nf6 {[%clk 0:03:02.3]} 5. Bf4 {[%clk
0:02:57.9]} 5... a6 {[%clk 0:03:03.2]} 6. e3 {[%clk 0:02:58.3]} 6... Nc6 {[%clk
0:03:03.5]} 7. a3 {[%clk 0:02:58.2]} 7... Bg4 {[%clk 0:03:04.1]} 8. Nf3 {[%clk
0:02:58.1]} 8... e6 {[%clk 0:03:03.9]} 9. h3 {[%clk 0:02:58.5]} 9... Bh5 {[%clk
0:03:04]} 10. Be2 {[%clk 0:02:57.2]} 10... Bd6 {[%clk 0:03:03.8]} 11. Ne5 {[%clk
0:02:56.4]} 11... Bxe2 {[%clk 0:03:03.3]} 12. Qxe2 {[%clk 0:02:56.4]} 12... Bxe5
{[%clk 0:03:03.9]} 13. dxe5 {[%clk 0:02:55.8]} 13... Nd7 {[%clk 0:03:04.3]} 14.
Qg4 {[%clk 0:02:45.8]} 14... g6 {[%clk 0:02:47.3]} 15. Qg3 {[%clk 0:02:42.7]}
15... Qb6 {[%clk 0:02:40.9]} 16. b4 {[%clk 0:02:39.7]} 16... Nxb4 {[%clk
0:02:33]} 17. Rb1 {[%clk 0:02:03.9]} 17... Qc5 {[%clk 0:02:10.3]} 18. O-O {[%clk
0:01:58.9]} 18... Nd3 {[%clk 0:01:59]} 19. Rb3 {[%clk 0:01:37.6]} 19... Qc4
{[%clk 0:01:54]} 20. Rfb1 {[%clk 0:01:33]} 20... N7c5 {[%clk 0:01:52.8]} 21.
Nxd5 {[%clk 0:01:04.1]} 21... Qxd5 {[%clk 0:01:43.4]} 22. Rb6 {[%clk 0:01:02.2]}
22... O-O {[%clk 0:01:31.5]} 23. Bh6 {[%clk 0:00:45.2]} 23... Rfe8 {[%clk
0:01:31.1]} 24. f4 {[%clk 0:00:45.3]} 24... Qe4 {[%clk 0:01:15.5]} 25. Qh4
{[%clk 0:00:36.5]} 25... Nd7 {[%clk 0:00:38.4]} 26. Rxb7 {[%clk 0:00:33.7]}
26... N3c5 {[%clk 0:00:38.6]} 27. Rc7 {[%clk 0:00:28.2]} 27... Rac8 {[%clk
0:00:33.8]} 28. Rxc8 {[%clk 0:00:21]} 28... Rxc8 {[%clk 0:00:34.7]} 29. Kh2
{[%clk 0:00:18.4]} 29... Qxe3 {[%clk 0:00:32.6]} 30. Rb2 {[%clk 0:00:08.8]}
30... Qxa3 {[%clk 0:00:30]} 31. Rc2 {[%clk 0:00:08.6]} 31... Qd3 {[%clk
0:00:29]} 32. Rxc5 {[%clk 0:00:07.2]} 32... Rb8 {[%clk 0:00:10.8]} 33. Rc7
{[%clk 0:00:05.7]} 33... g5 {[%clk 0:00:06.4]} 34. Qxg5+ {[%clk 0:00:05]} 34...
Qg6 {[%clk 0:00:06]} 35. Qxg6+ {[%clk 0:00:04.9]} 35... hxg6 {[%clk 0:00:06.9]}
36. Rxd7 {[%clk 0:00:05]} 36... Ra8 {[%clk 0:00:07.5]} 37. Bg5 {[%clk
0:00:04.6]} 37... a5 {[%clk 0:00:08.1]} 38. Rd3 {[%clk 0:00:05]} 38... a4 {[%clk
0:00:08.5]} 39. Rd2 {[%clk 0:00:05.1]} 39... Kf8 {[%clk 0:00:09]} 40. Ra2 {[%clk
0:00:05.4]} 40... Ra5 {[%clk 0:00:07]} 41. Bh4 {[%clk 0:00:05.2]} 41... Ke8
{[%clk 0:00:07.5]} 42. Bf2 {[%clk 0:00:05.5]} 42... Ra6 {[%clk 0:00:08.4]} 43.
Bc5 {[%clk 0:00:05.6]} 43... Kd7 {[%clk 0:00:09]} 44. Bd6 {[%clk 0:00:06.3]}
44... Kc6 {[%clk 0:00:09.6]} 45. Kg3 {[%clk 0:00:06.9]} 45... Kb5 {[%clk
0:00:10.2]} 46. Kf3 {[%clk 0:00:07.3]} 46... Kc4 {[%clk 0:00:10.8]} 47. Ke2
{[%clk 0:00:07.9]} 47... Kb3 {[%clk 0:00:11.1]} 48. Ra3+ {[%clk 0:00:08.5]}
48... Kb2 {[%clk 0:00:11.8]} 49. g4 {[%clk 0:00:09.1]} 49... Rxd6 {[%clk
0:00:12]} 50. exd6 {[%clk 0:00:09]} 50... Kxa3 {[%clk 0:00:11.8]} 51. d7 {[%clk
0:00:09.9]} 51... Kb2 {[%clk 0:00:12.5]} 52. d8=Q {[%clk 0:00:10.8]} 52... a3
{[%clk 0:00:13.4]} 53. Qb6+ {[%clk 0:00:10.9]} 53... Ka1 {[%clk 0:00:13.7]} 54.
Kd2 {[%clk 0:00:11.5]} 54... a2 {[%clk 0:00:14.3]} 55. Kc2 {[%clk 0:00:12]}
55... e5 {[%clk 0:00:14]} 56. Qb2# {[%clk 0:00:12.5]} 1-0

[Event "Late-Titled-Tuesday-Blitz-February-20-2024"]
[Site "Chess.com"]
[Date "2024.02.20"]
[Round "2"]
[White "ukchessbomber"]
[Black "KuzubovYuriy"]
[Result "1-0"]
[WhiteElo "2608"]
[BlackElo "2967"]
[TimeControl "180+1"]
[EndTime "14:17:35 PST"]
[Termination "ukchessbomber won on time"]

1. c4 {[%clk 0:02:59.3]} 1... g6 {[%clk 0:02:59.9]} 2. b3 {[%clk 0:02:59.6]}
2... Bg7 {[%clk 0:03:00.1]} 3. Nc3 {[%clk 0:03:00.5]} 3... e5 {[%clk 0:02:50.9]}
4. Bb2 {[%clk 0:03:00.3]} 4... f5 {[%clk 0:02:49.1]} 5. e3 {[%clk 0:03:01.2]}
5... Nf6 {[%clk 0:02:48.5]} 6. g3 {[%clk 0:03:01.7]} 6... O-O {[%clk 0:02:47.3]}
7. Bg2 {[%clk 0:03:02.3]} 7... Nc6 {[%clk 0:02:45.6]} 8. Nge2 {[%clk 0:03:02.6]}
8... d6 {[%clk 0:02:41.8]} 9. O-O {[%clk 0:03:02.7]} 9... Be6 {[%clk 0:02:37.7]}
10. Nd5 {[%clk 0:03:00.8]} 10... Ne8 {[%clk 0:02:37.3]} 11. b4 {[%clk 0:02:59]}
11... Qd7 {[%clk 0:02:37.4]} 12. d3 {[%clk 0:02:57.2]} 12... Nd8 {[%clk
0:02:33.6]} 13. a4 {[%clk 0:02:55.7]} 13... c6 {[%clk 0:02:29.8]} 14. Ndc3
{[%clk 0:02:56]} 14... a5 {[%clk 0:02:27]} 15. b5 {[%clk 0:02:44.3]} 15... Bf7
{[%clk 0:02:27.1]} 16. Ba3 {[%clk 0:02:25.3]} 16... Nf6 {[%clk 0:02:20.2]} 17.
Rb1 {[%clk 0:02:25.3]} 17... Rc8 {[%clk 0:02:04.6]} 18. Qb3 {[%clk 0:02:09.1]}
18... c5 {[%clk 0:02:00.8]} 19. b6 {[%clk 0:02:01.9]} 19... Nc6 {[%clk
0:02:00.2]} 20. Qb5 {[%clk 0:02:01.7]} 20... Rfd8 {[%clk 0:01:53.1]} 21. Nd5
{[%clk 0:01:45.2]} 21... Nxd5 {[%clk 0:01:44.6]} 22. cxd5 {[%clk 0:01:05.7]}
22... Nb4 {[%clk 0:01:42.3]} 23. Qc4 {[%clk 0:01:05.8]} 23... Qxa4 {[%clk
0:01:34.4]} 24. Nc3 {[%clk 0:01:06.2]} 24... Qd7 {[%clk 0:01:33.5]} 25. Nb5
{[%clk 0:00:52.8]} 25... Ra8 {[%clk 0:01:01.1]} 26. Nc7 {[%clk 0:00:47.1]} 26...
Rab8 {[%clk 0:00:57]} 27. Rfc1 {[%clk 0:00:18.6]} 27... Rf8 {[%clk 0:00:49.4]}
28. Ne6 {[%clk 0:00:18.5]} 28... Rfe8 {[%clk 0:00:49.1]} 29. Nc7 {[%clk
0:00:19]} 29... Rec8 {[%clk 0:00:48.1]} 30. Nb5 {[%clk 0:00:15.5]} 30... Bf6
{[%clk 0:00:44.6]} 31. Na7 {[%clk 0:00:15.2]} 31... Rf8 {[%clk 0:00:42.3]} 32.
d4 {[%clk 0:00:15.1]} 32... exd4 {[%clk 0:00:30.9]} 33. exd4 {[%clk 0:00:14.4]}
33... Bxd4 {[%clk 0:00:31]} 34. Nb5 {[%clk 0:00:11.7]} 34... Bf6 {[%clk
0:00:29]} 35. Nc7 {[%clk 0:00:10.8]} 35... Rbc8 {[%clk 0:00:25.4]} 36. Ne6
{[%clk 0:00:10.2]} 36... Rfe8 {[%clk 0:00:24.9]} 37. Re1 {[%clk 0:00:10.2]}
37... Be5 {[%clk 0:00:17.7]} 38. Bb2 {[%clk 0:00:09.2]} 38... Bxb2 {[%clk
0:00:15.2]} 39. Rxb2 {[%clk 0:00:09.4]} 39... a4 {[%clk 0:00:14.1]} 40. Rbe2
{[%clk 0:00:09.2]} 40... Rb8 {[%clk 0:00:08.3]} 41. Qc3 {[%clk 0:00:09.4]} 41...
Bxe6 {[%clk 0:00:08.2]} 42. Rxe6 {[%clk 0:00:08.6]} 42... Rxe6 {[%clk
0:00:08.2]} 43. Rxe6 {[%clk 0:00:09.5]} 43... Ra8 {[%clk 0:00:05.5]} 44. Qa3
{[%clk 0:00:05.4]} 44... Re8 {[%clk 0:00:03.9]} 45. Qe3 {[%clk 0:00:04.4]} 1-0

[Event "Late-Titled-Tuesday-Blitz-February-20-2024"]
[Site "Chess.com"]
[Date "2024.02.20"]
[Round "2"]
[White "jlf287"]
[Black "GnowReopard"]
[Result "0-1"]
[WhiteElo "2519"]
[BlackElo "2814"]
[TimeControl "180+1"]
[EndTime "14:17:36 PST"]
[Termination "GnowReopard won on time"]

1. d4 {[%clk 0:02:59.7]} 1... Nf6 {[%clk 0:02:59.9]} 2. c4 {[%clk 0:02:59.8]}
2... c5 {[%clk 0:02:59.7]} 3. d5 {[%clk 0:02:59.1]} 3... e6 {[%clk 0:03:00.1]}
4. Nc3 {[%clk 0:02:59.1]} 4... exd5 {[%clk 0:03:00.7]} 5. cxd5 {[%clk 0:03:00]}
5... d6 {[%clk 0:03:00.9]} 6. e4 {[%clk 0:03:00.1]} 6... g6 {[%clk 0:03:01.4]}
7. Nf3 {[%clk 0:02:59.2]} 7... Bg7 {[%clk 0:03:00.6]} 8. Nd2 {[%clk 0:02:59.4]}
8... O-O {[%clk 0:03:00.1]} 9. Be2 {[%clk 0:03:00]} 9... Re8 {[%clk 0:03:00]}
10. O-O {[%clk 0:03:00]} 10... Na6 {[%clk 0:03:00.2]} 11. Re1 {[%clk 0:02:48.9]}
11... Nc7 {[%clk 0:02:57]} 12. Qc2 {[%clk 0:02:47.5]} 12... Rb8 {[%clk
0:02:52.1]} 13. a4 {[%clk 0:02:45.4]} 13... b6 {[%clk 0:02:50.2]} 14. Nc4 {[%clk
0:02:28.5]} 14... Ba6 {[%clk 0:02:49.3]} 15. Na3 {[%clk 0:02:25.3]} 15... Bxe2
{[%clk 0:02:47]} 16. Rxe2 {[%clk 0:02:25.5]} 16... a6 {[%clk 0:02:38.6]} 17. Nc4
{[%clk 0:02:23]} 17... b5 {[%clk 0:02:38.8]} 18. axb5 {[%clk 0:02:22.7]} 18...
axb5 {[%clk 0:02:39.7]} 19. Na5 {[%clk 0:02:22.8]} 19... Ra8 {[%clk 0:02:40.4]}
20. Nc6 {[%clk 0:02:22]} 20... Qd7 {[%clk 0:02:33]} 21. Rxa8 {[%clk 0:02:15]}
21... Rxa8 {[%clk 0:02:33.9]} 22. e5 {[%clk 0:02:10.6]} 22... Nfxd5 {[%clk
0:02:25.1]} 23. exd6 {[%clk 0:02:05]} 23... Qxc6 {[%clk 0:02:16.7]} 24. dxc7
{[%clk 0:02:05.1]} 24... Nxc3 {[%clk 0:02:06.7]} 25. bxc3 {[%clk 0:02:03.2]}
25... Qxc7 {[%clk 0:02:07.1]} 26. g3 {[%clk 0:01:58.5]} 26... c4 {[%clk
0:02:01.8]} 27. Bf4 {[%clk 0:01:55]} 27... Ra1+ {[%clk 0:01:55.1]} 28. Kg2
{[%clk 0:01:54.5]} 28... Qc6+ {[%clk 0:01:55.6]} 29. f3 {[%clk 0:01:52.3]} 29...
h5 {[%clk 0:01:53]} 30. Be5 {[%clk 0:01:45.9]} 30... Qd5 {[%clk 0:01:15.9]} 31.
Bxg7 {[%clk 0:01:38.8]} 31... Kxg7 {[%clk 0:01:16.8]} 32. Rd2 {[%clk 0:01:27.8]}
32... Qe5 {[%clk 0:01:16.4]} 33. Re2 {[%clk 0:01:27.6]} 33... Qf6 {[%clk
0:01:16.2]} 34. Qb2 {[%clk 0:01:22.4]} 34... Rd1 {[%clk 0:01:00.9]} 35. Qxb5
{[%clk 0:00:56.8]} 35... Qxc3 {[%clk 0:01:01]} 36. Qe5+ {[%clk 0:00:55.2]} 36...
Qxe5 {[%clk 0:01:00.8]} 37. Rxe5 {[%clk 0:00:56.1]} 37... c3 {[%clk 0:01:00]}
38. Rc5 {[%clk 0:00:55.7]} 38... Rd2+ {[%clk 0:01:00.1]} 39. Kh3 {[%clk
0:00:54]} 39... c2 {[%clk 0:01:00.2]} 40. g4 {[%clk 0:00:48.3]} 40... Kf6 {[%clk
0:00:51.6]} 41. Kg3 {[%clk 0:00:44.3]} 41... Ke6 {[%clk 0:00:47.5]} 42. gxh5
{[%clk 0:00:36.4]} 42... gxh5 {[%clk 0:00:48.4]} 43. h4 {[%clk 0:00:36.6]} 43...
Kd6 {[%clk 0:00:45.8]} 44. Rc8 {[%clk 0:00:36.3]} 44... Ke5 {[%clk 0:00:44.3]}
45. Rc7 {[%clk 0:00:12.6]} 45... Kd4 {[%clk 0:00:38]} 46. Kf4 {[%clk 0:00:12.8]}
46... Kd3 {[%clk 0:00:37.2]} 47. Kg5 {[%clk 0:00:07.7]} 47... Rd1 {[%clk
0:00:33.3]} 48. Kxh5 {[%clk 0:00:02.3]} 48... c1=Q {[%clk 0:00:33.2]} 49. Rxc1
{[%clk 0:00:01.7]} 49... Rxc1 {[%clk 0:00:33.9]} 50. Kg5 {[%clk 0:00:02.2]}
50... Rf1 {[%clk 0:00:28.7]} 0-1

[Event "Late-Titled-Tuesday-Blitz-February-20-2024"]
[Site "Chess.com"]
[Date "2024.02.20"]
[Round "2"]
[White "cthulhuuu"]
[Black "PNEPaul"]
[Result "1-0"]
[WhiteElo "2422"]
[BlackElo "1986"]
[TimeControl "180+1"]
[EndTime "14:17:37 PST"]
[Termination "cthulhuuu won on time"]

1. e4 {[%clk 0:03:00.9]} 1... e5 {[%clk 0:02:48]} 2. Nf3 {[%clk 0:03:00]} 2...
Nc6 {[%clk 0:02:47.4]} 3. Bb5 {[%clk 0:02:59.4]} 3... f5 {[%clk 0:02:47]} 4. Nc3
{[%clk 0:02:58.5]} 4... Nf6 {[%clk 0:02:46.7]} 5. d3 {[%clk 0:02:43.7]} 5... Be7
{[%clk 0:02:46.2]} 6. exf5 {[%clk 0:02:39.9]} 6... O-O {[%clk 0:02:45.5]} 7. O-O
{[%clk 0:02:37]} 7... d6 {[%clk 0:02:45.1]} 8. Bxc6 {[%clk 0:02:26.3]} 8... bxc6
{[%clk 0:02:44.1]} 9. d4 {[%clk 0:02:26.8]} 9... e4 {[%clk 0:02:43.3]} 10. Ng5
{[%clk 0:02:25.6]} 10... d5 {[%clk 0:02:41.6]} 11. Ne6 {[%clk 0:02:24.2]} 11...
Bxe6 {[%clk 0:02:41]} 12. fxe6 {[%clk 0:02:25.1]} 12... Qd6 {[%clk 0:02:39.3]}
13. f3 {[%clk 0:02:20.5]} 13... Qxe6 {[%clk 0:02:37]} 14. Bf4 {[%clk 0:02:09.2]}
14... Bd6 {[%clk 0:02:21.4]} 15. Bxd6 {[%clk 0:02:07.1]} 15... cxd6 {[%clk
0:02:21.1]} 16. Qe2 {[%clk 0:01:50.2]} 16... Rae8 {[%clk 0:02:15.6]} 17. Rae1
{[%clk 0:01:46.6]} 17... Qd7 {[%clk 0:02:00.3]} 18. fxe4 {[%clk 0:01:32.7]}
18... dxe4 {[%clk 0:01:50.9]} 19. Qa6 {[%clk 0:01:27.9]} 19... d5 {[%clk
0:01:45.7]} 20. Nd1 {[%clk 0:01:08.7]} 20... Ng4 {[%clk 0:01:09.7]} 21. h3
{[%clk 0:01:07.4]} 21... Rxf1+ {[%clk 0:01:00]} 22. Rxf1 {[%clk 0:01:08.3]}
22... Nf6 {[%clk 0:00:59.9]} 23. Ne3 {[%clk 0:01:07.4]} 23... h6 {[%clk
0:00:54.8]} 24. Qe2 {[%clk 0:00:42.6]} 24... Nh7 {[%clk 0:00:47.5]} 25. Qf2
{[%clk 0:00:40.8]} 25... Rf8 {[%clk 0:00:45]} 26. Qg3 {[%clk 0:00:40.7]} 26...
Rxf1+ {[%clk 0:00:43.5]} 27. Kxf1 {[%clk 0:00:41.3]} 27... Qf7+ {[%clk
0:00:38.6]} 28. Ke2 {[%clk 0:00:41.3]} 28... Nf6 {[%clk 0:00:35.3]} 29. Kd2
{[%clk 0:00:33.1]} 29... Kh7 {[%clk 0:00:31.6]} 30. Qf4 {[%clk 0:00:31.6]} 30...
Qg6 {[%clk 0:00:29.3]} 31. Qf5 {[%clk 0:00:30]} 31... Nh5 {[%clk 0:00:22.7]} 32.
Ke1 {[%clk 0:00:16.8]} 32... Ng3 {[%clk 0:00:22]} 33. Qxg6+ {[%clk 0:00:10.7]}
33... Kxg6 {[%clk 0:00:21.5]} 34. Kf2 {[%clk 0:00:11.6]} 34... Nf5 {[%clk
0:00:21.3]} 35. g3 {[%clk 0:00:08.9]} 35... Nxd4 {[%clk 0:00:20.7]} 36. c3
{[%clk 0:00:07.7]} 36... Nf3 {[%clk 0:00:20.1]} 37. Ng4 {[%clk 0:00:07.5]} 37...
Kf7 {[%clk 0:00:17.4]} 38. Ke3 {[%clk 0:00:06.5]} 38... h5 {[%clk 0:00:17]} 39.
Nf2 {[%clk 0:00:06.7]} 39... g5 {[%clk 0:00:16]} 40. Nd3 {[%clk 0:00:06.3]}
40... Ke7 {[%clk 0:00:09.7]} 41. Nb4 {[%clk 0:00:05.9]} 41... Kd6 {[%clk
0:00:09]} 42. c4 {[%clk 0:00:06.1]} 42... dxc4 {[%clk 0:00:06.5]} 43. Kxe4
{[%clk 0:00:05.2]} 43... Nd2+ {[%clk 0:00:05.7]} 44. Kf5 {[%clk 0:00:05.1]}
44... c5 {[%clk 0:00:03]} 45. Nc2 {[%clk 0:00:05.4]} 45... Nf3 {[%clk
0:00:01.8]} 46. Ne3 {[%clk 0:00:04.6]} 1-0